bitfinex/quotes_BTCUSD_20230114
["timestamp","ask_amount","ask_price","bid_price","bid_amount"]
[1673696249018,1.5407406,20694.0,20693.0,0.001]
[1673696251005,2.74115834,20694.0,20693.0,0.001]
[1673696251501,2.45254251,20694.0,20693.0,0.00049457]
[1673696251745,2.09177272,20694.0,20693.0,0.00049457]
[1673696251988,2.09277272,20694.0,20689.0,0.00019]
[1673696252245,0.01043,20690.0,20689.0,0.00019]
[1673696252494,0.10781,20690.0,20689.0,0.00019]
[1673696252739,0.88501169,20690.0,20689.0,0.00019]
[1673696253231,0.98501169,20690.0,20689.0,0.00019]
[1673696253481,1.12101169,20690.0,20689.0,0.00019]
[1673696253732,1.50433669,20690.0,20684.0,0.19929707]
[1673696253977,1.10236957,20689.0,20684.0,0.19929707]
[1673696254221,0.49072595,20688.0,20684.0,0.19929707]
[1673696254729,0.01043,20686.0,20683.0,1.0936]
[1673696254976,0.20115595,20686.0,20683.0,1.0936]
[1673696255226,0.19072595,20685.0,20682.0,0.00776402]
[1673696255476,0.19588703,20684.0,20682.0,0.00776402]
[1673696255721,0.3,20685.0,20682.0,0.00776402]
[1673696255973,0.92817098,20686.0,20682.0,0.00776402]
[1673696256216,0.106,20685.0,20682.0,0.05211187]
[1673696256488,1.40508601,20686.0,20682.0,0.00776402]
[1673696256743,1.40508601,20686.0,20682.0,0.05211187]
[1673696256744,0.136,20685.0,20682.0,0.05211187]
[1673696257012,0.136,20685.0,20682.0,0.00776402]
[1673696257307,0.136,20685.0,20683.0,0.25178976]
[1673696257540,0.136,20685.0,20683.0,0.73526176]
[1673696258015,0.136,20685.0,20684.0,0.22579132]
[1673696258258,0.136,20685.0,20684.0,0.70925632]
[1673696258519,0.00095627,20687.0,20684.0,0.70925632]
[1673696258760,0.136,20685.0,20683.0,0.483484]
[1673696259015,0.136,20685.0,20684.0,0.623662]
[1673696259258,0.136,20685.0,20684.0,1.044667]
[1673696259509,0.43452358,20692.0,20684.0,1.044667]
[1673696259782,0.43452358,20692.0,20684.0,2.2821312]
[1673696259783,0.136,20685.0,20684.0,2.2821312]
[1673696260006,0.136,20685.0,20684.0,0.86188286]
[1673696260271,0.136,20685.0,20684.0,1.18288786]
[1673696260512,0.136,20685.0,20684.0,0.80431752]
[1673696260747,0.43452358,20691.0,20684.0,0.80431752]
[1673696260986,0.19072595,20691.0,20685.0,0.04434785]
[1673696261221,0.01043,20690.0,20686.0,0.04434785]
[1673696261454,0.41043,20690.0,20686.0,0.04434785]
[1673696261695,0.3,20690.0,20686.0,0.04434785]
[1673696262201,0.66792764,20689.0,20685.0,0.48342]
[1673696262446,0.66792764,20689.0,20682.0,0.63145302]
[1673696262447,0.01043,20687.0,20683.0,0.23547586]
[1673696262696,0.19072595,20686.0,20683.0,0.23547586]
[1673696263188,0.49072595,20686.0,20683.0,0.23547586]
[1673696263442,0.3,20686.0,20682.0,0.00776402]
[1673696263672,0.49072595,20686.0,20682.0,0.00776402]
[1673696264631,0.62672595,20686.0,20682.0,0.00776402]
[1673696265132,0.50115595,20686.0,20682.0,0.00776402]
[1673696265136,0.63715595,20686.0,20682.0,0.00776402]
[1673696265387,1.12057895,20686.0,20682.0,0.00776402]
[1673696265870,2.03189509,20686.0,20682.0,0.00776402]
[1673696266588,1.84116914,20686.0,20682.0,0.00776402]
[1673696267069,1.84116914,20686.0,20682.0,0.05211187]
[1673696267347,0.136,20686.0,20683.0,0.29087992]
[1673696267594,0.136,20686.0,20684.0,1.01127785]
[1673696267832,0.136,20686.0,20685.0,0.321005]
[1673696268077,0.136,20686.0,20685.0,0.483442]
[1673696268314,0.136,20686.0,20685.0,0.583442]
[1673696268583,0.136,20686.0,20685.0,0.483442]
[1673696268821,0.43550536,20691.0,20685.0,0.70677721]
[1673696269079,0.00098178,20691.0,20686.0,0.04434785]
[1673696269345,0.00098178,20691.0,20687.0,0.52773185]
[1673696269596,0.00098178,20691.0,20688.0,0.04434785]
[1673696269828,0.00098178,20691.0,20689.0,1.450044]
[1673696270097,0.00098178,20691.0,20690.0,0.321005]
[1673696270341,0.1442402,20693.0,20690.0,0.80433]
[1673696270567,0.1442402,20693.0,20690.0,0.52767285]
[1673696271319,0.136,20691.0,20690.0,0.484325]
[1673696271547,0.1442402,20693.0,20691.0,0.24675181]
[1673696271799,0.2802402,20693.0,20692.0,0.966556]
[1673696272578,0.1442402,20693.0,20692.0,0.966556]
[1673696273517,0.2802402,20693.0,20692.0,0.966556]
[1673696274015,0.4162402,20693.0,20692.0,0.967556]
[1673696274267,0.41616216,20693.0,20692.0,1.16977242]
[1673696275487,0.41616216,20693.0,20692.0,1.49086856]
[1673696275736,0.41616216,20693.0,20692.0,1.16977242]
[1673696276242,0.41616216,20693.0,20692.0,0.001]
[1673696276696,0.41616216,20693.0,20692.0,0.67848052]
[1673696277454,0.41616216,20693.0,20692.0,0.99948552]
[1673696277689,0.14076216,20693.0,20692.0,0.99848552]
[1673696277909,0.27776216,20693.0,20692.0,1.00148552]
[1673696278124,0.27776216,20693.0,20692.0,1.09848552]
[1673696278342,0.27776216,20693.0,20692.0,0.99848552]
[1673696278616,0.41276216,20693.0,20692.0,1.00148552]
[1673696278864,0.41276216,20693.0,20692.0,0.807283]
[1673696280429,0.41276216,20693.0,20692.0,0.324005]
[1673696280636,0.41276216,20693.0,20692.0,0.003]
[1673696281337,0.41276216,20693.0,20692.0,0.19406161]
[1673696281606,0.41276216,20693.0,20692.0,0.99834461]
[1673696282116,0.272,20693.0,20692.0,0.907283]
[1673696282830,0.272,20693.0,20692.0,1.00369032]
[1673696283568,0.272,20693.0,20692.0,0.807283]
[1673696283805,0.272,20693.0,20692.0,1.03795854]
[1673696284048,0.272,20693.0,20692.0,1.13795854]
[1673696284308,0.272,20693.0,20692.0,1.207283]
[1673696286632,0.272,20693.0,20692.0,1.07226227]
[1673696287806,0.272,20693.0,20692.0,0.324005]
[1673696288341,0.272,20693.0,20692.0,0.003]
[1673696289079,1.26826676,20693.0,20692.0,0.003]
[1673696289332,1.05770169,20693.0,20692.0,0.003]
[1673696289578,1.15770169,20693.0,20692.0,0.003]
[1673696289822,1.36895669,20693.0,20688.0,0.00019]
[1673696290068,0.11043,20691.0,20688.0,0.00019]
[1673696290311,1.21288122,20691.0,20688.0,0.00019]
[1673696290783,1.02215527,20691.0,20688.0,0.00019]
[1673696291041,0.58763169,20691.0,20688.0,0.00019]
[1673696291527,0.72363169,20691.0,20686.0,0.23638595]
[1673696291767,0.49072595,20690.0,20686.0,0.23638595]
[1673696292009,0.49072595,20690.0,20685.0,0.22710043]
[1673696292010,0.1,20689.0,20685.0,0.22710043]
[1673696292281,0.19072595,20689.0,20685.0,0.22710043]
[1673696293011,0.49072595,20689.0,20685.0,0.0076784]
[1673696293519,0.19072595,20688.0,20685.0,0.0076784]
[1673696293769,7.2883578,20688.0,20685.0,0.0076784]
[1673696294019,7.72288138,20688.0,20685.0,0.0076784]
[1673696294255,7.2883578,20688.0,20685.0,0.0076784]
[1673696294803,7.2779278,20688.0,20685.0,0.0076784]
[1673696295529,8.18655355,20688.0,20685.0,0.0076784]
[1673696295784,1.20245122,20687.0,20685.0,0.0076784]
[1673696296023,1.80295327,20686.0,20685.0,0.0076784]
[1673696296515,0.09738,20686.0,20685.0,0.0076784]
[1673696297510,0.23338,20686.0,20685.0,0.0076784]
[1673696298274,0.53338,20686.0,20685.0,0.0076784]
[1673696298525,2.40262544,20686.0,20685.0,0.0076784]
[1673696298999,1.62852327,20686.0,20685.0,0.0076784]
[1673696299243,1.49399969,20686.0,20685.0,0.0076784]
[1673696299484,0.71058169,20686.0,20685.0,0.0076784]
[1673696300215,0.23338,20686.0,20685.0,0.0076784]
[1673696301249,0.23338,20686.0,20685.0,0.00759894]
[1673696302221,0.136,20686.0,20685.0,0.00759894]
[1673696302471,0.80392764,20686.0,20685.0,0.00759894]
[1673696302703,2.08935158,20686.0,20685.0,9.894e-05]
[1673696302972,2.08935158,20686.0,20683.0,0.00858702]
[1673696302973,0.1,20685.0,20683.0,0.00858702]
[1673696303214,1.87865527,20684.0,20683.0,0.00858702]
[1673696303468,2.17865527,20684.0,20683.0,0.00858702]
[1673696304700,2.53663246,20684.0,20683.0,0.00858702]
[1673696305176,2.67063246,20684.0,20683.0,0.00858702]
[1673696306917,0.1,20683.0,20682.0,0.00776402]
[1673696307165,1.79521327,20683.0,20682.0,6.402e-05]
[1673696307411,1.79521327,20683.0,20678.0,0.0076784]
[1673696307412,0.1,20682.0,20678.0,0.0076784]
[1673696307676,0.09738,20679.0,20678.0,0.0076784]
[1673696307914,0.96074169,20681.0,20678.0,0.24301114]
[1673696308408,0.10781,20679.0,20678.0,0.0076784]
[1673696308651,0.09738,20679.0,20678.0,0.0076784]
[1673696308905,0.014,20679.0,20678.0,0.27551933]
[1673696309149,0.00097943,20683.0,20678.0,0.75912433]
[1673696309380,0.00097943,20683.0,20679.0,0.04434785]
[1673696309381,0.014,20681.0,20679.0,0.04434785]
[1673696309618,0.47818112,20683.0,20678.0,0.75912433]
[1673696309871,0.014,20679.0,20678.0,0.80347218]
[1673696310105,0.014,20679.0,20678.0,0.75912433]
[1673696310860,0.09738,20679.0,20678.0,0.0076784]
[1673696311624,0.11138,20679.0,20678.0,0.0076784]
[1673696313098,0.014,20679.0,20678.0,0.0076784]
[1673696313343,0.014,20679.0,20678.0,0.25717521]
[1673696313596,0.014,20679.0,20678.0,0.74078021]
[1673696315603,0.014,20679.0,20678.0,1.06178521]
[1673696318072,0.11138,20679.0,20678.0,0.57818021]
[1673696318800,0.11138,20679.0,20678.0,0.25717521]
[1673696319029,0.11138,20679.0,20678.0,0.0076784]
[1673696319269,0.11138,20679.0,20678.0,0.00667727]
[1673696322998,0.69256895,20679.0,20678.0,0.00667727]
[1673696323250,1.17615095,20679.0,20678.0,0.00667727]
[1673696323495,1.07216369,20679.0,20678.0,0.00667727]
[1673696323741,1.37216369,20679.0,20678.0,0.01847727]
[1673696323984,1.07216369,20679.0,20678.0,0.01847727]
[1673696324716,0.014,20679.0,20678.0,0.22183442]
[1673696324965,0.11138,20679.0,20678.0,0.01847727]
[1673696325227,0.61014969,20679.0,20678.0,0.01847727]
[1673696325474,0.58858169,20679.0,20678.0,0.01847727]
[1673696326532,0.88858169,20679.0,20678.0,0.01847727]
[1673696327101,0.77930764,20679.0,20678.0,0.01847727]
[1673696327348,0.77930764,20679.0,20677.0,0.00865527]
[1673696327349,0.1,20678.0,20677.0,0.00865527]
[1673696327587,9.07325807,20678.0,20677.0,0.00865527]
[1673696329093,8.65273449,20678.0,20677.0,0.00865527]
[1673696329342,8.35273449,20678.0,20677.0,0.00865527]
[1673696329594,8.35273449,20678.0,20677.0,0.19728362]
[1673696329595,0.014,20678.0,20677.0,0.19728362]
[1673696329837,0.92847858,20682.0,20677.0,0.19728362]
[1673696330089,0.1,20680.0,20678.0,0.04434785]
[1673696330338,0.47720169,20679.0,20677.0,0.25025812]
[1673696330849,0.135,20678.0,20677.0,0.00865527]
[1673696331089,7.4129278,20678.0,20677.0,0.00865527]
[1673696331582,7.2779278,20678.0,20677.0,0.00865527]
[1673696331899,7.86757319,20678.0,20677.0,0.00865527]
[1673696332404,8.47977488,20678.0,20677.0,0.00865527]
[1673696332634,8.77929846,20678.0,20677.0,0.00865527]
[1673696332877,8.91429846,20678.0,20677.0,0.00865527]
[1673696333158,8.32465307,20678.0,20677.0,0.00865527]
[1673696333629,7.75512949,20678.0,20677.0,0.00865527]
[1673696334362,8.23873449,20678.0,20677.0,0.00865527]
[1673696334609,8.67473449,20678.0,20677.0,0.00865527]
[1673696335870,7.4139278,20678.0,20677.0,0.00865527]
[1673696336112,0.136,20678.0,20677.0,0.00865527]
[1673696337366,0.494014,20679.0,20677.0,0.00865527]
[1673696337609,0.494014,20679.0,20677.0,0.00365527]
[1673696337610,0.236,20678.0,20677.0,0.00365527]
[1673696337851,0.536,20678.0,20677.0,0.00365527]
[1673696338361,0.136,20678.0,20677.0,0.00365527]
[1673696338606,0.61320169,20678.0,20677.0,0.00365527]
[1673696339099,0.136,20678.0,20677.0,0.00365527]
[1673696340602,0.58763169,20678.0,20677.0,0.00365527]
[1673696340865,0.47720169,20678.0,20677.0,0.00365527]
[1673696341372,0.77121391,20678.0,20677.0,0.00365527]
[1673696341614,0.61320169,20678.0,20677.0,0.00365527]
[1673696341855,0.47720169,20678.0,20677.0,0.00365527]
[1673696342101,0.61320169,20678.0,20677.0,0.00365527]
[1673696343086,0.91320169,20678.0,20677.0,0.00365527]
[1673696343345,0.83828455,20678.0,20677.0,0.00365527]
[1673696343595,0.61320169,20678.0,20677.0,0.00365527]
[1673696343841,0.47720169,20678.0,20677.0,0.00365527]
[1673696344086,0.136,20678.0,20677.0,0.00365527]
[1673696344823,0.136,20678.0,20677.0,0.79254165]
[1673696345066,0.136,20678.0,20677.0,1.0691988]
[1673696345312,0.136,20678.0,20677.0,0.7481938]
[1673696345560,0.136,20678.0,20677.0,1.5528278]
[1673696345817,0.136,20678.0,20677.0,1.29191827]
[1673696346068,4.07497943,20683.0,20678.0,0.11351394]
[1673696346329,4.07497943,20683.0,20679.0,1.22652685]
[1673696346557,4.07497943,20683.0,20680.0,0.04434785]
[1673696346796,4.07497943,20683.0,20681.0,0.483535]
[1673696347271,4.078,20683.0,20681.0,0.483535]
[1673696347540,4.074,20683.0,20680.0,0.69891769]
[1673696347794,4.077,20683.0,20680.0,0.81091769]
[1673696348321,0.1,20682.0,20681.0,0.001]
[1673696348562,4.074,20683.0,20681.0,0.483535]
[1673696349279,4.074,20683.0,20681.0,0.73379571]
[1673696350019,4.074,20683.0,20682.0,0.23728072]
[1673696350250,4.074,20683.0,20682.0,0.72079272]
[1673696351507,4.077,20683.0,20682.0,0.83279272]
[1673696352816,0.003,20683.0,20682.0,0.93985985]
[1673696353080,0.003,20683.0,20682.0,0.916517]
[1673696353331,0.003,20683.0,20682.0,1.1449692]
[1673696355016,0.10038,20683.0,20682.0,0.112]
[1673696355257,0.003,20683.0,20682.0,0.112]
[1673696356249,0.003,20683.0,20682.0,0.10881186]
[1673696357253,0.10038,20683.0,20682.0,0.10881186]
[1673696359297,0.57758169,20683.0,20682.0,0.10881186]
[1673696359543,0.88866269,20683.0,20682.0,0.10881186]
[1673696359786,2.15963408,20683.0,20682.0,0.10881186]
[1673696360042,1.94360411,20683.0,20682.0,0.10881186]
[1673696360290,2.42709211,20683.0,20682.0,0.10881186]
[1673696360543,2.42409211,20683.0,20678.0,0.11351394]
[1673696360790,0.01043,20680.0,20678.0,0.11351394]
[1673696361039,0.1,20679.0,20678.0,0.11351394]
[1673696361296,0.48763169,20680.0,20678.0,0.33147167]
[1673696362048,0.54563169,20680.0,20678.0,0.12451394]
[1673696362292,0.1,20679.0,20678.0,0.12451394]
[1673696362535,0.54563169,20680.0,20678.0,0.12451394]
[1673696363303,0.48763169,20680.0,20678.0,0.11351394]
[1673696363540,0.93520169,20679.0,20678.0,0.12451394]
[1673696363791,2.00131811,20679.0,20678.0,0.11351394]
[1673696364596,2.21734808,20679.0,20678.0,0.11351394]
[1673696364837,1.94331811,20679.0,20678.0,0.12451394]
[1673696365091,1.94331811,20679.0,20678.0,0.11351394]
[1673696365092,1.50480367,20679.0,20678.0,0.11351394]
[1673696365335,1.85446488,20679.0,20678.0,0.12451394]
[1673696366317,1.7104449,20679.0,20678.0,0.12451394]
[1673696366554,1.85446488,20679.0,20678.0,0.12451394]
[1673696367543,2.07049485,20679.0,20678.0,0.12451394]
[1673696367791,1.85446488,20679.0,20678.0,0.12451394]
[1673696368049,1.7104449,20679.0,20678.0,0.12451394]
[1673696368276,1.85446488,20679.0,20678.0,0.12451394]
[1673696368511,1.7104449,20679.0,20678.0,0.12451394]
[1673696369236,1.85446488,20679.0,20678.0,0.12451394]
[1673696369752,2.07049485,20679.0,20678.0,0.12451394]
[1673696369991,1.77919126,20679.0,20678.0,0.12451394]
[1673696370256,1.77919126,20679.0,20678.0,0.16886179]
[1673696370257,1.01878369,20679.0,20678.0,0.16886179]
[1673696370505,1.01878369,20679.0,20678.0,0.12451394]
[1673696371261,1.20610312,20679.0,20678.0,0.12451394]
[1673696371490,1.35048072,20679.0,20678.0,0.12451394]
[1673696371754,1.01878369,20679.0,20678.0,0.12451394]
[1673696372969,1.30950964,20679.0,20678.0,0.12451394]
[1673696373223,1.90236569,20679.0,20678.0,0.12451394]
[1673696373969,1.80236569,20679.0,20678.0,0.12451394]
[1673696374701,1.94674329,20679.0,20678.0,0.12451394]
[1673696375665,2.28985922,20679.0,20678.0,0.12451394]
[1673696375920,2.16277326,20679.0,20678.0,0.12451394]
[1673696377226,0.1,20678.0,20669.0,0.26648929]
[1673696377469,0.10781,20672.0,20669.0,2.06348929]
[1673696377727,8.53741144,20672.0,20670.0,0.21788306]
[1673696377960,8.53741144,20672.0,20670.0,0.01151397]
[1673696378212,8.64668549,20672.0,20670.0,0.01151397]
[1673696378952,8.78268549,20672.0,20670.0,0.01151397]
[1673696379214,8.64668549,20672.0,20670.0,0.01151397]
[1673696379456,8.78168549,20672.0,20670.0,0.01151397]
[1673696380743,8.64668549,20672.0,20670.0,0.01151397]
[1673696380995,9.25678766,20672.0,20670.0,0.01151397]
[1673696381251,9.12078766,20672.0,20670.0,0.01151397]
[1673696381515,8.78268549,20672.0,20670.0,0.01151397]
[1673696382006,8.92178549,20672.0,20670.0,0.01151397]
[1673696382309,8.78578549,20672.0,20670.0,0.01151397]
[1673696382512,8.92178549,20672.0,20670.0,0.01151397]
[1673696382759,1.64385769,20672.0,20670.0,0.01151397]
[1673696383015,1.798593,20672.0,20670.0,0.01151397]
[1673696383264,1.74385769,20672.0,20670.0,0.01151397]
[1673696383509,1.60785769,20672.0,20670.0,0.01151397]
[1673696383766,1.74385769,20672.0,20670.0,0.01151397]
[1673696384026,1.87019849,20672.0,20670.0,0.01151397]
[1673696384257,2.34430066,20672.0,20670.0,0.01151397]
[1673696384738,1.87019849,20672.0,20670.0,0.01151397]
[1673696384980,1.73419849,20672.0,20670.0,0.01151397]
[1673696385219,1.87119849,20672.0,20670.0,0.01151397]
[1673696385457,1.73419849,20672.0,20670.0,0.01151397]
[1673696385944,0.1,20671.0,20670.0,0.01151397]
[1673696386217,9.59676966,20671.0,20670.0,0.01151397]
[1673696386462,9.12266749,20671.0,20670.0,0.01151397]
[1673696386724,9.12266749,20671.0,20668.0,0.05180481]
[1673696386725,0.1,20670.0,20668.0,0.03831878]
[1673696386964,6.69814969,20669.0,20668.0,0.03831878]
[1673696387205,9.38229041,20669.0,20668.0,0.03831878]
[1673696387931,9.51829041,20669.0,20668.0,0.03831878]
[1673696388912,9.21829041,20669.0,20668.0,0.03831878]
[1673696389174,9.08229041,20669.0,20668.0,0.03331878]
[1673696390134,9.21829041,20669.0,20668.0,0.03331878]
[1673696390659,9.51829041,20669.0,20668.0,0.03331878]
[1673696392392,9.61915318,20669.0,20668.0,0.03331878]
[1673696394315,9.44551161,20669.0,20668.0,0.03331878]
[1673696394560,7.89320084,20669.0,20668.0,0.28378229]
[1673696394792,8.01684241,20669.0,20668.0,0.23943444]
[1673696395596,7.40364072,20669.0,20668.0,0.23943444]
[1673696395828,7.54064072,20669.0,20668.0,0.24043444]
[1673696396070,7.40364072,20669.0,20668.0,0.23943444]
[1673696396313,7.45564072,20669.0,20668.0,0.24143444]
[1673696396552,7.88084241,20669.0,20668.0,0.23943444]
[1673696396791,7.88084241,20669.0,20668.0,0.03531878]
[1673696396792,7.93284241,20669.0,20668.0,0.03531878]
[1673696397042,7.93284241,20669.0,20668.0,0.03331878]
[1673696397043,7.88084241,20669.0,20668.0,0.03331878]
[1673696397301,7.40364072,20669.0,20668.0,0.2628177]
[1673696397547,7.45564072,20669.0,20668.0,0.2648177]
[1673696398752,5.0715,20669.0,20668.0,0.03531878]
[1673696398991,0.302,20669.0,20668.0,0.71564784]
[1673696399274,2.63373914,20673.0,20668.0,0.71564784]
[1673696399275,2.63373914,20673.0,20669.0,0.23102522]
[1673696399550,2.63373914,20673.0,20670.0,1.39332543]
[1673696399797,2.63275862,20673.0,20670.0,0.73858728]
[1673696400048,0.47720169,20672.0,20669.0,0.23102522]
[1673696400563,0.01043,20671.0,20669.0,0.29802522]
[1673696400792,7.2883578,20671.0,20669.0,0.29802522]
[1673696401273,7.2883578,20671.0,20669.0,0.23102522]
[1673696401772,7.2883578,20671.0,20670.0,0.007]
[1673696402248,7.2883578,20671.0,20669.0,0.23102522]
[1673696402998,7.4033578,20671.0,20669.0,0.23102522]
[1673696403256,7.2883578,20671.0,20669.0,0.23102522]
[1673696403503,7.3779278,20671.0,20669.0,0.23802522]
[1673696404228,7.3779278,20671.0,20669.0,0.45846415]
[1673696404468,7.3779278,20671.0,20669.0,0.94227915]
[1673696404950,7.3779278,20671.0,20670.0,0.25572201]
[1673696405191,0.1,20671.0,20670.0,0.73951401]
[1673696405710,2.63288862,20673.0,20670.0,0.73951401]
[1673696405975,0.1,20671.0,20670.0,0.74651401]
[1673696406482,0.1,20671.0,20670.0,0.007]
[1673696406738,7.3779278,20671.0,20670.0,0.007]
[1673696406976,7.3779278,20671.0,20669.0,0.23102522]
[1673696406977,7.2779278,20671.0,20669.0,0.23102522]
[1673696407226,7.2889278,20671.0,20670.0,0.067]
[1673696407979,7.76612949,20671.0,20670.0,0.067]
[1673696408212,7.76612949,20671.0,20669.0,0.23102522]
[1673696408213,8.06555949,20671.0,20669.0,0.23102522]
[1673696408463,0.77720169,20670.0,20669.0,0.23102522]
[1673696408694,0.87720169,20670.0,20669.0,0.23102522]
[1673696409219,1.91750276,20670.0,20669.0,0.23102522]
[1673696409468,1.79526949,20670.0,20669.0,0.23702522]
[1673696409969,0.1,20669.0,20666.0,2.80019]
[1673696410226,0.11902,20667.0,20666.0,2.80019]
[1673696410470,1.81449901,20667.0,20666.0,2.80019]
[1673696410709,1.81455901,20667.0,20666.0,2.8]
[1673696410940,1.38014469,20667.0,20666.0,2.8]
[1673696411180,1.59561565,20667.0,20666.0,2.8]
[1673696411694,1.93555901,20667.0,20666.0,2.806]
[1673696411931,1.50114469,20667.0,20666.0,2.806]
[1673696412181,1.50114469,20667.0,20666.0,2.80584432]
[1673696412913,1.75114469,20667.0,20666.0,2.80584432]
[1673696413630,2.18555901,20667.0,20666.0,2.80584432]
[1673696414356,2.59490872,20667.0,20666.0,0.95887246]
[1673696414849,2.18555901,20667.0,20666.0,0.95887246]
[1673696415132,2.43076633,20667.0,20666.0,0.95887246]
[1673696415368,2.79161028,20667.0,20666.0,0.95887246]
[1673696415886,2.57510391,20667.0,20666.0,0.95887246]
[1673696416093,2.79195896,20667.0,20666.0,0.95887246]
[1673696416336,3.72670408,20667.0,20666.0,0.95887246]
[1673696416641,3.07718496,20667.0,20666.0,0.95887246]
[1673696416885,3.07718496,20667.0,20664.0,0.00981721]
[1673696416886,1.34561624,20665.0,20664.0,0.00981721]
[1673696417140,4.84686215,20665.0,20662.0,0.00019]
[1673696417390,4.84686215,20665.0,20661.0,0.00981721]
[1673696417391,0.98906313,20663.0,20661.0,0.00981721]
[1673696417714,4.16291513,20662.0,20661.0,0.00981721]
[1673696417935,14.08452926,20662.0,20661.0,0.00981721]
[1673696418193,14.08452926,20662.0,20661.0,0.00975061]
[1673696418194,13.37331214,20662.0,20661.0,0.00975061]
[1673696418452,13.37331214,20662.0,20659.0,0.01141667]
[1673696418453,14.74910577,20662.0,20659.0,7.28e-06]
[1673696418702,5.87296911,20660.0,20656.0,7.28e-06]
[1673696418948,5.87296911,20660.0,20654.0,0.218128]
[1673696418949,0.14448674,20658.0,20654.0,0.218128]
[1673696419203,0.19072595,20657.0,20654.0,0.193128]
[1673696419457,0.01043,20655.0,20652.0,0.01437228]
[1673696419733,1.63626164,20654.0,20652.0,0.01437228]
[1673696419948,0.96792764,20653.0,20652.0,0.01437228]
[1673696420196,1.39883142,20653.0,20652.0,0.01437228]
[1673696420433,1.39883142,20653.0,20652.0,0.00764297]
[1673696420434,2.02212242,20653.0,20652.0,0.00764297]
[1673696420685,0.1,20652.0,20650.0,0.05514822]
[1673696420935,2.51082705,20651.0,20650.0,0.05514822]
[1673696421176,2.81082705,20651.0,20650.0,0.05514822]
[1673696421431,5.44358567,20651.0,20650.0,0.05514822]
[1673696421673,5.88651391,20651.0,20650.0,0.05514822]
[1673696421922,5.88651391,20651.0,20636.0,0.484572]
[1673696421923,0.47720169,20647.0,20637.0,0.91546278]
[1673696422171,0.11902,20640.0,20638.0,0.22276702]
[1673696422402,0.11902,20640.0,20637.0,1.1342]
[1673696422403,7.57724375,20640.0,20637.0,1.1342]
[1673696422637,7.2779278,20640.0,20638.0,0.969066]
[1673696422895,7.46365375,20640.0,20638.0,0.969066]
[1673696423126,7.46365375,20640.0,20639.0,0.22277085]
[1673696423127,0.44072595,20640.0,20639.0,0.22277085]
[1673696423379,7.3262886,20643.0,20639.0,1.16655165]
[1673696423645,7.2779278,20648.0,20641.0,0.2394]
[1673696423888,7.2779278,20648.0,20643.0,1.45327]
[1673696424142,7.2779278,20648.0,20644.0,0.08203265]
[1673696424400,7.2779278,20648.0,20645.0,0.56640665]
[1673696424401,7.5279278,20648.0,20645.0,0.56640665]
[1673696424640,7.5419278,20648.0,20645.0,0.56640665]
[1673696424893,7.5374278,20648.0,20646.0,0.08203265]
[1673696425142,0.04876831,20650.0,20647.0,1.67502565]
[1673696425381,0.04876831,20650.0,20648.0,0.40303765]
[1673696425627,0.04876831,20650.0,20649.0,0.484284]
[1673696425873,0.0002,20650.0,20648.0,0.484292]
[1673696426103,0.00026,20650.0,20649.0,0.26780737]
[1673696426653,0.06826,20650.0,20649.0,0.26980737]
[1673696427405,0.06806,20650.0,20649.0,0.26980737]
[1673696427645,0.06806,20650.0,20649.0,0.16680737]
[1673696428879,0.06806,20650.0,20649.0,0.002]
[1673696429350,0.06806,20650.0,20649.0,0.20573655]
[1673696429586,0.06806,20650.0,20649.0,0.002]
[1673696429838,0.06727,20650.0,20649.0,0.002]
[1673696430101,0.06677,20650.0,20649.0,0.002]
[1673696430372,0.06677,20650.0,20649.0,0.486284]
[1673696430615,0.06614,20650.0,20649.0,0.486284]
[1673696431353,0.06556,20650.0,20649.0,0.486284]
[1673696431669,0.04855179,20654.0,20649.0,1.205289]
[1673696431908,0.04797179,20654.0,20650.0,0.29788965]
[1673696432143,0.04797179,20654.0,20651.0,1.452699]
[1673696432410,0.04797179,20654.0,20651.0,1.53473165]
[1673696432631,0.04797179,20654.0,20651.0,0.968466]
[1673696432925,0.014,20654.0,20651.0,0.968466]
[1673696433142,0.1929448,20657.0,20651.0,0.968466]
[1673696433405,0.011,20654.0,20651.0,0.992466]
[1673696433878,0.011,20654.0,20652.0,0.21675017]
[1673696434131,0.011,20654.0,20653.0,0.968382]
[1673696434634,0.19072595,20654.0,20653.0,0.484191]
[1673696434862,0.19072595,20654.0,20652.0,0.21675017]
[1673696434863,0.22288242,20654.0,20652.0,0.21675017]
[1673696435117,0.22288242,20654.0,20648.0,0.83379]
[1673696435118,0.01043,20653.0,20648.0,0.83379]
[1673696435362,0.19072595,20652.0,20648.0,0.83379]
[1673696435608,0.19072595,20651.0,20648.0,1.10052729]
[1673696435862,0.19072595,20651.0,20648.0,0.26692729]
[1673696436113,0.19072595,20651.0,20649.0,0.21915355]
[1673696436355,0.28484639,20653.0,20648.0,0.02419]
[1673696436356,0.1,20652.0,20648.0,0.02419]
[1673696436603,0.1966418,20650.0,20648.0,0.26622675]
[1673696436855,0.1966418,20650.0,20648.0,0.26603675]
[1673696437366,0.1966418,20650.0,20648.0,0.048]
[1673696437598,0.1966418,20650.0,20648.0,0.23599085]
[1673696437843,0.1966418,20650.0,20648.0,0.23399085]
[1673696438114,0.2096418,20650.0,20648.0,0.21199085]
[1673696438583,0.2116418,20650.0,20648.0,0.23399085]
[1673696438828,0.1966418,20650.0,20648.0,0.21199085]
[1673696439062,0.2116418,20650.0,20648.0,0.23399085]
[1673696441039,0.2055418,20650.0,20648.0,0.23399085]
[1673696441307,0.015,20650.0,20648.0,0.506305]
[1673696441786,0.015,20650.0,20649.0,0.21751491]
[1673696442036,0.01446,20650.0,20649.0,1.02280391]
[1673696442507,0.01446,20650.0,20649.0,0.70179891]
[1673696442758,0.01446,20650.0,20649.0,0.21751491]
[1673696442759,0.01362,20650.0,20649.0,0.21751491]
[1673696443269,0.01299,20650.0,20649.0,0.21751491]
[1673696443742,0.23959464,20653.0,20649.0,0.21751491]
[1673696443984,0.23959464,20653.0,20649.0,0.24151491]
[1673696443985,0.011,20650.0,20649.0,0.24151491]
[1673696444241,0.01042,20650.0,20649.0,0.24151491]
[1673696444478,0.00992,20650.0,20649.0,0.508284]
[1673696444712,7.2781278,20654.0,20649.0,0.484284]
[1673696444959,0.135,20653.0,20649.0,0.487284]
[1673696445242,0.0011893,20654.0,20649.0,0.487284]
[1673696445243,0.0011893,20654.0,20650.0,0.1]
[1673696445486,0.0011893,20654.0,20652.0,0.1401]
[1673696445729,0.0011893,20654.0,20653.0,1.452573]
[1673696445986,0.15646496,20659.0,20654.0,0.10059986]